fUSD/lending_fUSD_20240223
["ID","MTS","AMOUNT","RATE_DAILY","PERIOD"]
[314983608,1708715467311,-500.0,0.0002863,2]
[314983609,1708715467321,-159.69428409,0.0002863,2]
[314983610,1708715467332,-500.0,0.0002863,2]
[314983611,1708715467342,-500.0,0.0002863,2]
[314983612,1708715467351,-500.0,0.0002863,2]
[314983613,1708715467362,-1001.41,0.0002863,2]
[314983614,1708715467372,-622.71,0.0002863,2]
[314983615,1708715467382,-584.34,0.0002863,2]
[314983616,1708715467392,-500.0,0.0002863,2]
[314983617,1708715467402,-623.83,0.0002863,2]
[314983618,1708715467412,-260.35,0.0002863,2]
[314983619,1708715467421,-500.0,0.0002863,2]
[314983620,1708715467432,-500.0,0.0002863,2]
[314983621,1708715467442,-500.0,0.0002863,2]
[314983622,1708715467452,-508.86,0.0002863,2]
[314983623,1708715467462,-566.03,0.0002863,2]
[314983624,1708715467473,-500.0,0.0002863,2]
[314983625,1708715467483,-644.38,0.0002863,2]
[314983626,1708715467493,-188.94,0.0002863,2]
[314983627,1708715467503,-500.0,0.0002863,2]
[314983628,1708715467513,-1440.25,0.0002863,2]
[314983629,1708715467522,-799.44,0.0002863,2]
[314983630,1708715467532,-550.38852443,0.0002863,30]
[314983631,1708715467542,-152.5,0.0002863,2]
[314983632,1708715467552,-500.0,0.0002863,2]
[314983633,1708715467562,-893.13,0.0002863,2]
[314983634,1708715467572,-500.0,0.0002863,2]
[314983635,1708715467582,-500.0,0.0002863,2]
[314983636,1708715467591,-152.6064863,0.00028633,2]
[314983637,1708715467601,-150.0,0.00028643,2]
[314983638,1708715467611,-162.22,0.00028654,2]
[314983639,1708715467621,-3689.70579272,0.00028664,2]
[314983640,1708715467631,-154.02083881,0.00028664,2]
[314983641,1708715467641,-154.07502588,0.00028672,2]
[314983642,1708715467651,-150.0,0.00028686,2]
[314983643,1708715467661,-152.0,0.00028689,3]
[314983644,1708715467671,-192.0,0.00028691,5]
[314983645,1708715467681,-976.94,0.00028696,2]
[314983646,1708715467691,-206.85395485,0.000287,2]
[314983647,1708715467700,-150.0,0.00028706,2]
[314983648,1708715467710,-151.0,0.00028708,30]
[314983649,1708715467720,-1314.14506351,0.00028719,2]
[314983650,1708715467730,-298.88,0.00028719,2]
[314983651,1708715467741,-169.19547487,0.00028723,2]
[314983652,1708715467752,-150.0,0.00028731,2]
[314983653,1708715467762,-169.4892898,0.00028738,2]
[314983654,1708715467771,-157.08374946,0.00028741,2]
[314983655,1708715467781,-4952.46101687,0.00028744,2]
[314983656,1708715467791,-1213.77329886,0.00028751,2]
[314983657,1708715467801,-873.987028,0.00028757,4]
[314983658,1708715467813,-170.14,0.00028759,2]
[314983659,1708715467822,-1707.59444641,0.00028764,7]
[314983660,1708715467832,-692.20998055,0.00028764,7]
[314983661,1708715467842,-799.63657076,0.00028764,6]
[314983662,1708715467851,-299.88602302,0.00028764,6]
[314983663,1708715467862,-25103.07398931,0.00028764,7]
[314983664,1708715467874,-782.54934621,0.00028764,7]
[314983665,1708715467884,-771.20419306,0.00028764,7]
[314983666,1708715467894,-251.02027402,0.00028764,6]
[314983667,1708715467905,-1041.26733011,0.00028764,7]
[314983668,1708715467915,-197.75274851,0.00028764,7]
[314983669,1708715467925,-584.75262536,0.00028764,7]
[314983670,1708715467935,-31052.72504961,0.00028766,2]
[314983671,1708715467946,-500.0,0.00028767,2]
[314983672,1708715467956,-500.0,0.00028767,2]
[314983673,1708715467967,-650.11,0.00028767,2]
[314983674,1708715467977,-155.0,0.00028767,2]
[314983675,1708715467987,-740.6,0.00028767,2]
[314983676,1708715467997,-500.0,0.00028767,2]
[314983677,1708715468006,-500.0,0.00028767,2]
[314983678,1708715468016,-500.0,0.00028767,2]
[314983679,1708715468026,-150.0,0.00028767,2]
[314983680,1708715468036,-500.0,0.00028767,2]
[314983681,1708715468046,-500.0,0.00028767,2]
[314983682,1708715468056,-500.0,0.00028767,2]
[314983683,1708715468066,-500.0,0.00028767,2]
[314983684,1708715468077,-500.0,0.00028767,2]
[314983685,1708715468086,-1001.41,0.00028767,2]
[314983686,1708715468096,-622.71,0.00028767,2]
[314983687,1708715468106,-584.34,0.00028767,2]
[314983688,1708715468115,-500.0,0.00028767,2]
[314983689,1708715468126,-623.83,0.00028767,2]
[314983690,1708715468136,-500.0,0.00028767,2]
[314983691,1708715468146,-500.0,0.00028767,2]
[314983692,1708715468157,-500.0,0.00028767,2]
[314983693,1708715468169,-508.86,0.00028767,2]
[314983694,1708715468179,-566.03,0.00028767,2]
[314983695,1708715468189,-500.0,0.00028767,2]
[314983696,1708715468200,-644.38,0.00028767,2]
[314983697,1708715468210,-500.0,0.00028767,2]
[314983698,1708715468219,-1440.25,0.00028767,2]
[314983699,1708715468229,-799.44,0.00028767,2]
[314983700,1708715468240,-500.0,0.00028767,2]
[314983701,1708715468249,-893.13,0.00028767,2]
[314983702,1708715468259,-500.0,0.00028767,2]
[314983703,1708715468270,-500.0,0.00028767,2]
[314983704,1708715468280,-349.48,0.00028773,2]
[314983705,1708715468290,-1063.10046247,0.00028785,4]
[314983706,1708715468300,-672.31358869,0.00028786,4]
[314983707,1708715468310,-2454.86482629,0.00028788,4]
[314983708,1708715468320,-672.31358869,0.00028791,4]
[314983709,1708715468332,-1500.0,0.00028797,2]
[314983710,1708715468342,-150.0,0.000288,2]
[314983711,1708715468352,-154.02083881,0.000288,2]
[314983712,1708715468362,-2454.86482629,0.00028802,4]
[314983713,1708715468371,-1063.10046247,0.0002881,4]
[314983714,1708715468381,-672.31358869,0.00028811,4]
[314983715,1708715468392,-221.94455753,0.00028815,4]
[314983716,1708715468402,-150.0,0.00028816,2]
[314983717,1708715468412,-158.55,0.00028822,2]
[314983718,1708715468422,-675.64454925,0.00028822,4]
[314983719,1708715468432,-154.02083881,0.00028824,2]
[314983720,1708715468442,-2454.86482629,0.00028825,4]
[314983721,1708715468452,-1500.0,0.00028826,2]
[314983722,1708715468462,-1271.94462735,0.00028828,2]
[314983723,1708715468471,-150.0,0.00028829,2]
[314983724,1708715468482,-150.0,0.00028829,2]
[314983725,1708715468492,-150.0,0.00028829,2]
[314983726,1708715468502,-150.0,0.00028829,2]
[314983727,1708715468511,-150.0,0.00028829,2]
[314983728,1708715468521,-150.0,0.00028829,2]
[314983729,1708715468531,-150.0,0.00028829,2]
[314983730,1708715468541,-2695.0,0.00028829,2]
[314983731,1708715468733,-1867.0,0.00028829,2]
[314983732,1708715468743,-458.0,0.00028829,2]
[314983733,1708715468753,-955.0,0.00028829,2]
[314983734,1708715468762,-533.0,0.00028829,2]
[314983735,1708715468772,-709.0,0.00028829,2]
[314983736,1708715468782,-217.716,0.00028829,2]
[314983737,1708715468791,-1952.0,0.00028829,2]
[314983738,1708715468801,-1231.0,0.00028829,2]
[314983739,1708715468810,-1257.0,0.00028829,2]
[314983740,1708715468819,-604.762,0.00028829,2]
[314983741,1708715468831,-1012.272,0.00028829,2]
[314983742,1708715468841,-865.767,0.00028829,2]
[314983743,1708715468851,-430.0,0.00028829,2]
[314983744,1708715468862,-398.116,0.00028829,2]
[314983745,1708715468875,-451.061,0.00028829,2]
[314983746,1708715468885,-1146.705,0.00028829,2]
[314983747,1708715468894,-338.0,0.00028829,2]
[314983748,1708715468904,-322.0,0.00028829,2]
[314983749,1708715468915,-2891.0,0.00028829,2]
[314983750,1708715468925,-2406.0,0.00028829,2]
[314983751,1708715468934,-455.0,0.00028829,2]
[314983752,1708715468945,-391.169,0.00028829,2]
[314983753,1708715468955,-675.64454925,0.00028832,4]
[314983754,1708715468964,-672.31358869,0.00028833,4]
[314983755,1708715468974,-150.01,0.00028839,2]
[314983756,1708715468983,-2274.75401122,0.00028839,2]
[314983757,1708715468993,-3276.64813158,0.0002884,2]
[314983758,1708715469002,-479.57651866,0.0002884,4]
[314983759,1708715469012,-150.0,0.0002884,2]
[314983760,1708715469021,-221.94455753,0.00028841,4]
[314983761,1708715469031,-907.30692728,0.00028841,2]
[314983762,1708715469040,-276.26452284,0.00028842,2]
[314983763,1708715469050,-69329.85262631,0.00028843,4]
[314983764,1708715469059,-1063.10046247,0.00028844,4]
[314983765,1708715469069,-1087.0198863,0.00028844,4]
[314983766,1708715469078,-69329.85262631,0.00028845,4]
[314983767,1708715469089,-675.64454925,0.00028848,4]
[314983768,1708715469099,-14299.69083446,0.00028849,4]
[314983769,1708715469107,-221.94455753,0.00028849,4]
[314983770,1708715469117,-154.98329938,0.0002885,2]
[314983771,1708715469126,-1063.10046247,0.0002885,4]
[314983772,1708715469136,-69329.85262631,0.0002885,4]
[314983773,1708715469145,-1213.77329886,0.00028852,2]
[314983774,1708715469154,-672.31358869,0.00028855,4]
[314983775,1708715469164,-69329.85262631,0.00028857,4]
[314983776,1708715469174,-298.88,0.00028858,2]
[314983777,1708715469183,-163.70167318,0.00028859,2]
[314983778,1708715469193,-67.34805278,0.00028861,4]
[314983779,1708715469203,-14299.69083446,0.00028865,4]
[314983780,1708715469212,-1063.10046247,0.00028866,4]
[314983781,1708715469221,-221.94455753,0.00028867,4]
[314983782,1708715469231,-154.02083881,0.00028867,2]
[314983783,1708715469240,-228.398364,0.00028867,4]
[314983784,1708715469250,-14299.69083446,0.00028868,4]
[314983785,1708715469259,-2454.86482629,0.00028869,4]
[314983786,1708715469268,-1087.0198863,0.00028869,4]
[314983787,1708715469279,-479.57651866,0.0002887,4]
[314983788,1708715469289,-221.94455753,0.00028871,4]
[314983789,1708715469298,-206.85395485,0.00028872,2]
[314983790,1708715469308,-1278.24644462,0.00028873,2]
[314983791,1708715469317,-453.65346359,0.00028873,6]
[314983792,1708715469327,-2056.5241093,0.00028873,2]
[314983793,1708715469338,-209.94755441,0.00028874,6]
[314983794,1708715469347,-675.64454925,0.00028874,4]
[314983795,1708715469356,-14299.69083446,0.00028875,4]
[314983796,1708715469365,-2322.16943027,0.00028875,6]
[314983797,1708715469374,-131164.58604987,0.00028875,2]
[314983798,1708715469383,-432.10501307,0.00028876,2]
[314983799,1708715469393,-675.64454925,0.00028876,4]
[314983800,1708715469402,-227.62519971,0.00028877,6]
[314983801,1708715469412,-639.12322226,0.00028879,6]
[314983802,1708715469422,-419.89510893,0.00028879,2]
[314983803,1708715469432,-240.63235399,0.00028882,4]
[314983804,1708715469441,-276.26452284,0.00028883,2]
[314983805,1708715469451,-500.0,0.00028883,2]
[314983806,1708715469461,-65582.29302488,0.00028883,6]
[314983807,1708715469470,-240.63235399,0.00028885,4]
[314983808,1708715469479,-1005.6355726,0.00028886,6]
[314983809,1708715469489,-1028.2620546,0.00028887,6]
[314983810,1708715469499,-155.0,0.00028888,2]
[314983811,1708715469508,-4644.33886064,0.00028889,2]
[314983812,1708715469518,-635.97231362,0.0002889,6]
[314983813,1708715469527,-907.30692728,0.0002889,2]
[314983814,1708715469537,-2454.86482629,0.00028891,4]
[314983815,1708715469546,-479.57651866,0.00028892,4]
[314983816,1708715469556,-228.398364,0.00028895,4]
[314983817,1708715469565,-206.85395485,0.00028895,2]
[314983818,1708715469574,-216.05250648,0.00028895,6]
[314983819,1708715469584,-4644.33886064,0.00028896,2]
[314983820,1708715469593,-13526.73457313,0.00028899,6]
[314983821,1708715469603,-1087.0198863,0.000289,4]
[314983822,1708715469612,-500.0,0.000289,2]
[314983823,1708715469622,-200.0,0.000289,2]
[314983824,1708715469631,-328.0,0.00028901,2]
[314983825,1708715469641,-153.31768893,0.00028901,2]
[314983826,1708715469651,-650.11,0.00028904,2]
[314983827,1708715469661,-740.6,0.00028904,2]
[314983828,1708715469670,-500.0,0.00028904,2]
[314983829,1708715469680,-500.0,0.00028904,2]
[314983830,1708715469690,-500.0,0.00028904,2]
[314983831,1708715469700,-500.0,0.00028904,2]
[314983832,1708715469710,-500.0,0.00028904,2]
[314983833,1708715469719,-498.84,0.00028904,2]
[314983834,1708715469729,-500.0,0.00028904,2]
[314983835,1708715469739,-1001.41,0.00028904,2]
[314983836,1708715469748,-622.71,0.00028904,2]
[314983837,1708715469757,-584.34,0.00028904,2]
[314983838,1708715469767,-500.0,0.00028904,2]
[314983839,1708715469776,-623.83,0.00028904,2]
[314983840,1708715469785,-500.0,0.00028904,2]
[314983841,1708715469795,-500.0,0.00028904,2]
[314983842,1708715469805,-500.0,0.00028904,2]
[314983843,1708715469815,-508.86,0.00028904,2]
[314983844,1708715469824,-566.03,0.00028904,2]
[314983845,1708715469834,-500.0,0.00028904,2]
[314983846,1708715469845,-644.38,0.00028904,2]
[314983847,1708715469855,-500.0,0.00028904,2]
[314983848,1708715469867,-1440.25,0.00028904,2]
[314983849,1708715469877,-799.44,0.00028904,2]
[314983850,1708715469887,-500.0,0.00028904,2]
[314983851,1708715469897,-893.13,0.00028904,2]
[314983852,1708715469907,-500.0,0.00028904,2]
[314983853,1708715469917,-500.0,0.00028904,2]
[314983854,1708715469926,-432.10501307,0.00028907,2]
[314983855,1708715469935,-154.07502588,0.00028913,2]
[314983856,1708715469946,-150.0,0.00028915,2]
[314983857,1708715469955,-206.85395485,0.00028917,2]
[314983858,1708715469964,-1213.77329886,0.00028925,2]
[314983859,1708715469973,-1271.94462735,0.00028938,2]
[314983860,1708715469983,-27053.46914637,0.00028951,2]
[314983861,1708715469992,-150.0,0.00028954,2]
[314983862,1708715470002,-2011.27114531,0.00028954,2]
[314983863,1708715470012,-455.25039953,0.00028955,2]
[314983864,1708715470022,-2011.27114531,0.00028956,2]
[314983865,1708715470031,-170.35022239,0.00028961,15]
[314983866,1708715470041,-155.85963337,0.00028965,2]
[314983867,1708715470051,-150.0,0.00028966,2]
[314983868,1708715470060,-2056.5241093,0.00028967,2]
[314983869,1708715470069,-573.11929172,0.00028968,2]
[314983870,1708715470080,-1278.24644462,0.00028975,2]
[314983871,1708715470089,-419.89510893,0.00028976,2]
[314983872,1708715470098,-198.91045645,0.00028977,2]
[314983873,1708715470107,-150.0,0.00028978,2]
[314983874,1708715470116,-169.19547487,0.00028989,2]
[314983875,1708715470126,-198.91045645,0.00028989,2]
[314983876,1708715470135,-1314.14506351,0.00028993,2]
[314983877,1708715470144,-1314.14506351,0.00028996,2]
[314983878,1708715470153,-500.0,0.00028999,2]
[314983879,1708715470163,-387.75067818,0.00029,3]
[314983880,1708715470172,-199.54084763,0.00029,2]
[314983881,1708715470181,-14163.17668086,0.00029,2]
[314983882,1708715470191,-200.0,0.00029,30]
[314983883,1708715470200,-13000.0,0.00029,2]
[314983884,1708715470210,-900.0,0.00029,30]
[314983885,1708715470219,-1577.1245523,0.00029,2]
[314983886,1708715470228,-4000.0,0.00029,2]
[314983887,1708715470237,-500.0,0.00029,2]
[314983888,1708715470246,-500.0,0.00029,2]
[314983889,1708715470256,-500.0,0.00029,2]
[314983890,1708715470266,-500.0,0.00029,2]
[314983891,1708715470275,-500.0,0.00029,2]
[314983892,1708715470285,-500.0,0.00029,2]
[314983893,1708715470295,-634.46,0.00029,2]
[314983894,1708715470305,-500.0,0.00029,2]
[314983895,1708715470314,-104292.61917731,0.00029,2]
[314983896,1708715470325,-500.0,0.00029,2]
[314983897,1708715470335,-500.0,0.00029,2]
[314983898,1708715470345,-500.0,0.00029,2]
[314983899,1708715470354,-500.0,0.00029,2]
[314983900,1708715470364,-500.0,0.00029,2]
[314983901,1708715470373,-500.0,0.00029,2]
[314983902,1708715470383,-500.0,0.00029,2]
[314983903,1708715470392,-500.0,0.00029,2]
[314983904,1708715470402,-500.0,0.00029,2]
[314983905,1708715470412,-500.0,0.00029,2]
[314983906,1708715470421,-500.0,0.00029,2]
[314983907,1708715470430,-500.0,0.00029,2]
[314983908,1708715470440,-500.0,0.00029,2]
[314983909,1708715470449,-500.0,0.00029,2]
[314983910,1708715470458,-500.0,0.00029,2]
[314983911,1708715470467,-179.6184,0.00029,7]
[314983912,1708715470477,-179.6184,0.00029,7]
[314983913,1708715470486,-500.0,0.00029,2]
[314983914,1708715470495,-500.0,0.00029,2]
[314983915,1708715470505,-500.0,0.00029,2]
[314983916,1708715470514,-500.0,0.00029,2]
[314983917,1708715470523,-500.0,0.00029,2]
[314983918,1708715470532,-500.0,0.00029,2]
[314983919,1708715470541,-151.25568,0.00029,4]
[314983920,1708715470550,-850.0,0.00029,3]
[314983921,1708715470560,-168.45313711,0.00029006,2]
[314983922,1708715470569,-171.37682513,0.00029007,2]
[314983923,1708715470579,-206.85395485,0.00029007,2]
[314983924,1708715470589,-150.0,0.00029017,2]
[314983925,1708715470598,-150.0,0.00029033,2]
[314983926,1708715470607,-150.0,0.00029035,2]
[314983927,1708715470616,-8812.4318144,0.0002904,2]
[314983928,1708715470626,-1178.38748212,0.0002904,4]
[314983929,1708715470635,-650.11,0.00029041,2]
[314983930,1708715470644,-150.0,0.00029041,2]
[314983931,1708715470653,-740.6,0.00029041,2]
[314983932,1708715470663,-500.0,0.00029041,2]
[314983933,1708715470672,-500.0,0.00029041,2]
[314983934,1708715470681,-500.0,0.00029041,2]
[314983935,1708715470691,-243.97729955,0.00029041,2]
[314983936,1708715470700,-500.0,0.00029041,2]
[314983937,1708715470710,-500.0,0.00029041,2]
[314983938,1708715470720,-1001.41,0.00029041,2]
[314983939,1708715470730,-622.71,0.00029041,2]
[314983940,1708715470739,-584.34,0.00029041,2]
[314983941,1708715470749,-500.0,0.00029041,2]
[314983942,1708715470758,-623.83,0.00029041,2]
[314983943,1708715470768,-500.0,0.00029041,2]
[314983944,1708715470778,-500.0,0.00029041,2]
[314983945,1708715470787,-500.0,0.00029041,2]
[314983946,1708715470797,-508.86,0.00029041,2]
[314983947,1708715470807,-566.03,0.00029041,2]
[314983948,1708715470817,-500.0,0.00029041,2]
[314983949,1708715470827,-644.38,0.00029041,2]
[314983950,1708715470837,-500.0,0.00029041,2]
[314983951,1708715470846,-1440.25,0.00029041,2]
[314983952,1708715470857,-799.44,0.00029041,2]
[314983953,1708715470870,-500.0,0.00029041,2]
[314983954,1708715470880,-893.13,0.00029041,2]
[314983955,1708715470889,-500.0,0.00029041,2]
[314983956,1708715470899,-500.0,0.00029041,2]
[314983957,1708715470909,-150.0,0.00029042,2]
[314983958,1708715470919,-150.0,0.00029045,2]
[314983959,1708715470928,-158.00337686,0.00029045,2]
[314983960,1708715470939,-7595.5321908,0.0002906,2]
[314983961,1708715470948,-150.0,0.00029063,2]
[314983962,1708715471015,-153.31768893,0.00029071,2]
[314983963,1708715471025,-573.11929172,0.00029079,2]
[314983964,1708715471034,-1314.14506351,0.00029087,2]
[314983965,1708715471044,-573.11929172,0.00029092,2]
[314983966,1708715471053,-155.85963337,0.00029096,2]
[314983967,1708715471063,-500.0,0.00029099,2]
[314983968,1708715471072,-500.0,0.00029099,2]
[314983969,1708715471083,-297970.75164412,0.000291,2]
[314983970,1708715471092,-150.0,0.000291,2]
[314983971,1708715471102,-155.85963337,0.00029141,2]
[314983972,1708715471111,-650.11,0.00029178,2]
[314983973,1708715471121,-740.6,0.00029178,2]
[314983974,1708715471130,-500.0,0.00029178,2]
[314983975,1708715471140,-500.0,0.00029178,2]
[314983976,1708715471149,-500.0,0.00029178,2]
[314983977,1708715471158,-500.0,0.00029178,2]
[314983978,1708715471168,-500.0,0.00029178,2]
[314983979,1708715471178,-1001.41,0.00029178,2]
[314983980,1708715471187,-622.71,0.00029178,2]
[314983981,1708715471197,-584.34,0.00029178,2]
[314983982,1708715471206,-500.0,0.00029178,2]
[314983983,1708715471215,-623.83,0.00029178,2]
[314983984,1708715471225,-500.0,0.00029178,2]
[314983985,1708715471234,-371.43860072,0.00029178,2]
[314983986,1708715471243,-206.09,0.00029178,2]
[314983987,1708715471252,-508.86,0.00029178,2]
[314983988,1708715471261,-566.03,0.00029178,2]
[314983989,1708715471271,-500.0,0.00029178,2]
[314983990,1708715471280,-644.38,0.00029178,2]
[314983991,1708715471289,-430.56220637,0.00029178,2]
[314983992,1708715471299,-1440.25,0.00029178,2]
[314983993,1708715471309,-799.44,0.00029178,2]
[314983994,1708715471318,-500.0,0.00029178,2]
[314983995,1708715471327,-893.13,0.00029178,2]
[314983996,1708715471336,-603.18506413,0.00029178,2]
[314983997,1708715471345,-500.0,0.00029178,2]
[314983998,1708715471354,-154.07502588,0.0002918,2]
[314983999,1708715471363,-200.0,0.00029185,2]
[314984000,1708715471372,-800.0,0.00029185,2]
[314984001,1708715471382,-200.0,0.00029185,2]
[314984002,1708715471390,-150.0,0.00029185,2]
[314984003,1708715471400,-153.31768893,0.00029192,2]
[314984004,1708715471409,-150.0,0.00029196,2]
[314984005,1708715471418,-150.0,0.00029203,2]
[314984006,1708715471427,-150.0,0.00029209,2]
[314984007,1708715471436,-159.69428409,0.00029227,2]
[314984008,1708715471445,-300.0,0.00029228,2]
[314984009,1708715471455,-150.0,0.00029236,2]
[314984010,1708715471464,-150.0,0.00029238,2]
[314984011,1708715471474,-179.805,0.00029238,2]
[314984012,1708715471484,-150.0,0.00029259,2]
[314984013,1708715471493,-150.0,0.00029268,2]
[314984014,1708715471503,-2500.0,0.0002928,3]
[314984015,1708715471512,-150.0,0.00029288,2]
[314984016,1708715471521,-196.33416229,0.0002929,3]
[314984017,1708715471531,-154.98329938,0.00029293,2]
[314984018,1708715471540,-151.0,0.00029293,7]
[314984019,1708715471549,-150.0,0.00029297,2]
[314984020,1708715471558,-2602.30461492,0.00029298,5]
[314984021,1708715471567,-300.0,0.00029306,2]
[314984022,1708715471576,-179.6184,0.00029315,7]
[314984023,1708715471585,-179.6184,0.00029315,7]
[314984024,1708715471595,-650.11,0.00029315,2]
[314984025,1708715471604,-300.0,0.00029315,2]
[314984026,1708715471613,-740.6,0.00029315,2]
[314984027,1708715471622,-500.0,0.00029315,2]
[314984028,1708715471631,-500.0,0.00029315,2]
[314984029,1708715471640,-500.0,0.00029315,2]
[314984030,1708715471650,-500.0,0.00029315,2]
[314984031,1708715471659,-500.0,0.00029315,2]
[314984032,1708715471669,-1001.41,0.00029315,2]
[314984033,1708715471679,-622.71,0.00029315,2]
[314984034,1708715471688,-584.34,0.00029315,2]
[314984035,1708715471698,-439.22,0.00029315,2]
[314984036,1708715471707,-623.83,0.00029315,2]
[314984037,1708715471716,-500.0,0.00029315,2]
[314984038,1708715471725,-508.86,0.00029315,2]
[314984039,1708715471735,-566.03,0.00029315,2]
[314984040,1708715471745,-500.0,0.00029315,2]
[314984041,1708715471754,-644.38,0.00029315,2]
[314984042,1708715471763,-1440.25,0.00029315,2]
[314984043,1708715471772,-799.44,0.00029315,2]
[314984044,1708715471782,-500.0,0.00029315,2]
[314984045,1708715471792,-893.13,0.00029315,2]
[314984046,1708715471801,-500.0,0.00029315,2]
[314984047,1708715471810,-3689.70579272,0.00029318,2]
[314984048,1708715471819,-150.0,0.00029321,2]
[314984049,1708715471829,-156.35719251,0.00029322,2]
[314984050,1708715471838,-150.0,0.00029323,2]
[314984051,1708715471847,-150.0,0.0002933,2]
[314984052,1708715471857,-152.0,0.0002933,4]
[314984053,1708715471869,-150.0,0.00029333,2]
[314984054,1708715471878,-150.0,0.0002934,2]
[314984055,1708715471887,-150.0,0.00029342,2]
[314984056,1708715471896,-150.0,0.0002936,2]
[314984057,1708715471906,-152.6064863,0.00029363,2]
[314984058,1708715471917,-150.0,0.00029374,2]
[314984059,1708715471926,-150.0,0.00029376,2]
[314984060,1708715471935,-150.0,0.00029377,2]
[314984061,1708715471944,-150.0,0.00029405,2]
[314984062,1708715471953,-185.0,0.00029411,2]
[314984063,1708715471963,-150.0,0.00029412,2]
[314984064,1708715471972,-155.14487319,0.00029415,2]
[314984065,1708715471981,-150.0,0.00029416,2]
[314984066,1708715471991,-150.0,0.00029421,2]
[314984067,1708715472000,-500.0,0.00029426,3]
[314984068,1708715472009,-1213.77329886,0.0002943,2]
[314984069,1708715472018,-500.0,0.00029434,3]
[314984070,1708715472027,-500.0,0.00029439,3]
[314984071,1708715472037,-206.85395485,0.00029441,2]
[314984072,1708715472046,-500.0,0.00029443,3]
[314984073,1708715472057,-150.0,0.00029444,2]
[314984074,1708715472067,-1213.77329886,0.00029446,2]
[314984075,1708715472077,-500.0,0.00029448,2]
[314984076,1708715472086,-154.98329938,0.00029448,2]
[314984077,1708715472095,-500.0,0.00029448,3]
[314984078,1708715472105,-150.0,0.00029449,2]
[314984079,1708715472114,-150.0,0.00029449,2]
[314984080,1708715472123,-150.0,0.00029451,2]
[314984081,1708715472132,-155.76031539,0.00029451,2]
[314984082,1708715472142,-390.38070767,0.00029452,3]
[314984083,1708715472151,-500.0,0.00029452,3]
[314984084,1708715472160,-650.11,0.00029452,2]
[314984085,1708715472169,-740.6,0.00029452,2]
[314984086,1708715472178,-500.0,0.00029452,2]
[314984087,1708715472187,-500.0,0.00029452,2]
[314984088,1708715472197,-500.0,0.00029452,2]
[314984089,1708715472207,-500.0,0.00029452,2]
[314984090,1708715472216,-500.0,0.00029452,2]
[314984091,1708715472226,-1001.41,0.00029452,2]
[314984092,1708715472235,-622.71,0.00029452,2]
[314984093,1708715472245,-584.34,0.00029452,2]
[314984094,1708715472254,-623.83,0.00029452,2]
[314984095,1708715472264,-500.0,0.00029452,2]
[314984096,1708715472273,-508.86,0.00029452,2]
[314984097,1708715472283,-566.03,0.00029452,2]
[314984098,1708715472293,-500.0,0.00029452,2]
[314984099,1708715472303,-644.38,0.00029452,2]
[314984100,1708715472313,-1440.25,0.00029452,2]
[314984101,1708715472322,-799.44,0.00029452,2]
[314984102,1708715472334,-500.0,0.00029452,2]
[314984103,1708715472343,-893.13,0.00029452,2]
[314984104,1708715472353,-500.0,0.00029452,2]
[314984105,1708715472362,-500.0,0.00029457,3]
[314984106,1708715472371,-1314.14506351,0.0002946,2]
[314984107,1708715472381,-151.54644394,0.00029462,2]